fUSD/lending_fUSD_20250105
["ID","MTS","AMOUNT","RATE_DAILY","PERIOD"]
[347773985,1736098248568,-500.0,9.411e-05,2]
[347773986,1736098248580,-500.0,9.411e-05,2]
[347773987,1736098248592,-153.83,9.411e-05,2]
[347773988,1736098248603,-500.0,9.411e-05,2]
[347773989,1736098248615,-500.0,9.411e-05,2]
[347773990,1736098248626,-500.0,9.411e-05,2]
[347773991,1736098248639,-500.0,9.411e-05,2]
[347773992,1736098248650,-500.0,9.411e-05,2]
[347773993,1736098248661,-500.0,9.411e-05,2]
[347773994,1736098248673,-604.24206201,9.411e-05,2]
[347773995,1736098248684,-500.0,9.411e-05,2]
[347773996,1736098248695,-500.0,9.411e-05,2]
[347773997,1736098248706,-500.0,9.411e-05,2]
[347773998,1736098248718,-500.0,9.411e-05,2]
[347773999,1736098248729,-500.0,9.411e-05,2]
[347774000,1736098248741,-500.0,9.411e-05,2]
[347774001,1736098248752,-500.0,9.411e-05,2]
[347774002,1736098248762,-500.0,9.411e-05,2]
[347774003,1736098248773,-500.0,9.411e-05,2]
[347774004,1736098248784,-500.0,9.411e-05,2]
[347774005,1736098248795,-500.0,9.411e-05,2]
[347774006,1736098248807,-500.0,9.411e-05,2]
[347774007,1736098248818,-500.0,9.411e-05,2]
[347774008,1736098248831,-152.0,9.411e-05,2]
[347774009,1736098248843,-500.0,9.411e-05,2]
[347774010,1736098248854,-500.0,9.411e-05,2]
[347774011,1736098248866,-500.0,9.411e-05,2]
[347774012,1736098248884,-500.0,9.411e-05,2]
[347774013,1736098248896,-471.287831,9.411e-05,2]
[347774014,1736098248907,-500.0,9.411e-05,2]
[347774015,1736098248918,-500.0,9.411e-05,2]
[347774016,1736098248930,-500.0,9.411e-05,2]
[347774017,1736098248942,-243.73154811,9.411e-05,2]
[347774018,1736098248953,-500.0,9.411e-05,2]
[347774019,1736098248964,-500.0,9.411e-05,2]
[347774020,1736098248975,-500.0,9.411e-05,2]
[347774021,1736098248987,-500.0,9.411e-05,2]
[347774022,1736098248998,-635.188407,9.411e-05,2]
[347774023,1736098249007,-500.0,9.411e-05,2]
[347774024,1736098249017,-500.0,9.411e-05,2]
[347774025,1736098249026,-254.49,9.411e-05,2]
[347774026,1736098249036,-500.0,9.411e-05,2]
[347774027,1736098249046,-500.0,9.411e-05,2]
[347774028,1736098249055,-500.0,9.411e-05,2]
[347774029,1736098249064,-500.0,9.411e-05,2]
[347774030,1736098249075,-500.0,9.411e-05,2]
[347774031,1736098249086,-500.0,9.411e-05,2]
[347774032,1736098249095,-500.0,9.411e-05,2]
[347774033,1736098249106,-500.0,9.411e-05,2]
[347774034,1736098249115,-500.0,9.411e-05,2]
[347774035,1736098249124,-500.0,9.411e-05,2]
[347774036,1736098249134,-711.7,9.411e-05,2]
[347774037,1736098249143,-529.54,9.411e-05,2]
[347774038,1736098249153,-500.0,9.411e-05,2]
[347774039,1736098249164,-196.19,9.411e-05,2]
[347774040,1736098249176,-500.0,9.411e-05,2]
[347774041,1736098249186,-500.0,9.411e-05,2]
[347774042,1736098249195,-500.0,9.411e-05,2]
[347774043,1736098249205,-2279.03,9.411e-05,2]
[347774044,1736098249218,-157.99,9.411e-05,2]
[347774045,1736098249231,-579.56,9.411e-05,2]
[347774046,1736098249241,-500.0,9.411e-05,2]
[347774047,1736098249250,-500.0,9.411e-05,2]
[347774048,1736098249259,-500.0,9.411e-05,2]
[347774049,1736098249269,-1719.59,9.411e-05,2]
[347774050,1736098249278,-500.0,9.411e-05,2]
[347774051,1736098249287,-500.0,9.411e-05,2]
[347774052,1736098249296,-500.0,9.411e-05,2]
[347774053,1736098249306,-627.29,9.411e-05,2]
[347774054,1736098249315,-999.4,9.411e-05,2]
[347774055,1736098249325,-500.0,9.411e-05,2]
[347774056,1736098249335,-500.0,9.411e-05,2]
[347774057,1736098249345,-500.0,9.411e-05,2]
[347774058,1736098249355,-500.0,9.411e-05,2]
[347774059,1736098249364,-589.63,9.411e-05,2]
[347774060,1736098249374,-854.68,9.411e-05,2]
[347774061,1736098249384,-554.87,9.411e-05,2]
[347774062,1736098249395,-500.0,9.411e-05,2]
[347774063,1736098249405,-500.0,9.411e-05,2]
[347774064,1736098249779,-565.03,9.411e-05,2]
[347774065,1736098249802,-548.59,9.411e-05,2]
[347774066,1736098249819,-366.56,9.411e-05,2]
[347774067,1736098249831,-1103.19,9.411e-05,2]
[347774068,1736098249841,-500.0,9.411e-05,2]
[347774069,1736098249851,-500.0,9.411e-05,2]
[347774070,1736098249860,-500.0,9.411e-05,2]
[347774071,1736098249874,-500.0,9.411e-05,2]
[347774072,1736098249883,-500.0,9.411e-05,2]
[347774073,1736098249893,-500.0,9.411e-05,2]
[347774074,1736098249904,-500.0,9.411e-05,2]
[347774075,1736098249914,-551.87,9.411e-05,2]
[347774076,1736098249924,-500.0,9.411e-05,2]
[347774077,1736098249935,-500.0,9.411e-05,2]
[347774078,1736098249944,-500.0,9.411e-05,2]
[347774079,1736098249954,-688.62,9.411e-05,2]
[347774080,1736098249964,-500.0,9.411e-05,2]
[347774081,1736098249974,-500.0,9.411e-05,2]
[347774082,1736098249984,-365.25,9.411e-05,2]
[347774083,1736098249994,-747.39,9.411e-05,2]
[347774084,1736098250005,-500.0,9.411e-05,2]
[347774085,1736098250014,-500.0,9.411e-05,2]
[347774086,1736098250025,-575.03,9.411e-05,2]
[347774087,1736098250035,-500.0,9.411e-05,2]
[347774088,1736098250044,-500.0,9.411e-05,2]
[347774089,1736098250054,-500.0,9.411e-05,2]
[347774090,1736098250063,-684.88,9.411e-05,2]
[347774091,1736098250073,-500.0,9.411e-05,2]
[347774092,1736098250083,-500.0,9.411e-05,2]
[347774093,1736098250092,-707.71,9.411e-05,2]
[347774094,1736098250102,-1326.02,9.411e-05,2]
[347774095,1736098250111,-500.0,9.411e-05,2]
[347774096,1736098250121,-706.33,9.411e-05,2]
[347774097,1736098250131,-500.0,9.411e-05,2]
[347774098,1736098250140,-500.0,9.411e-05,2]
[347774099,1736098250151,-500.0,9.411e-05,2]
[347774100,1736098250161,-505.14,9.411e-05,2]
[347774101,1736098250170,-500.0,9.411e-05,2]
[347774102,1736098250180,-500.0,9.411e-05,2]
[347774103,1736098250190,-1393.88,9.411e-05,2]
[347774104,1736098250199,-500.0,9.411e-05,2]
[347774105,1736098250210,-569.29,9.411e-05,2]
[347774106,1736098250222,-500.0,9.411e-05,2]
[347774107,1736098250233,-500.0,9.411e-05,2]
[347774108,1736098250243,-500.0,9.411e-05,2]
[347774109,1736098250253,-500.0,9.411e-05,2]
[347774110,1736098250263,-500.0,9.411e-05,2]
[347774111,1736098250272,-500.0,9.411e-05,2]
[347774112,1736098250283,-1622.54,9.411e-05,2]
[347774113,1736098250292,-500.0,9.412e-05,2]
[347774114,1736098250302,-500.0,9.412e-05,2]
[347774115,1736098250313,-500.0,9.412e-05,2]
[347774116,1736098250323,-177.87,9.473e-05,2]
[347774117,1736098250332,-150.0,9.5e-05,2]
[347774118,1736098250343,-549.55,9.584e-05,2]
[347774119,1736098250353,-983.74,9.584e-05,2]
[347774120,1736098250363,-594.88,9.584e-05,2]
[347774121,1736098250373,-695.34,9.584e-05,2]
[347774122,1736098250382,-1006.19,9.584e-05,2]
[347774123,1736098250392,-1107.43,9.584e-05,2]
[347774124,1736098250401,-522.14,9.584e-05,2]
[347774125,1736098250411,-835.7,9.584e-05,2]
[347774126,1736098250420,-500.0,9.584e-05,2]
[347774127,1736098250429,-500.0,9.584e-05,2]
[347774128,1736098250438,-814.04,9.584e-05,2]
[347774129,1736098250450,-721.27,9.584e-05,2]
[347774130,1736098250459,-500.0,9.584e-05,2]
[347774131,1736098250468,-500.0,9.586e-05,2]
[347774132,1736098250478,-1026.58,9.586e-05,2]
[347774133,1736098250487,-812.38,9.586e-05,2]
[347774134,1736098250496,-2528.72,9.586e-05,2]
[347774135,1736098250505,-614.02,9.586e-05,2]
[347774136,1736098250515,-500.0,9.586e-05,2]
[347774137,1736098250527,-691.12,9.586e-05,2]
[347774138,1736098250539,-1610.49,9.586e-05,2]
[347774139,1736098250549,-295.92532281,9.586e-05,2]
[347774140,1736098250559,-563.53,9.586e-05,2]
[347774141,1736098250568,-757.04,9.586e-05,2]
[347774142,1736098250578,-691.96,9.586e-05,2]
[347774143,1736098250589,-1011.38,9.586e-05,2]
[347774144,1736098250598,-500.00608853,9.586e-05,2]
[347774145,1736098250608,-500.0,9.586e-05,2]
[347774146,1736098250618,-500.0,9.586e-05,2]
[347774147,1736098250627,-1244.56,9.586e-05,2]
[347774148,1736098250636,-1082.96,9.586e-05,2]
[347774149,1736098250645,-500.0,9.588e-05,2]
[347774150,1736098250656,-714.97,9.588e-05,2]
[347774151,1736098250665,-500.0,9.588e-05,2]
[347774152,1736098250675,-500.0,9.588e-05,2]
[347774153,1736098250685,-500.0,9.588e-05,2]
[347774154,1736098250696,-1475.02,9.588e-05,2]
[347774155,1736098250706,-500.0,9.588e-05,2]
[347774156,1736098250716,-500.0,9.588e-05,2]
[347774157,1736098250726,-500.0,9.588e-05,2]
[347774158,1736098250736,-500.0,9.588e-05,2]
[347774159,1736098250744,-753.68,9.588e-05,2]
[347774160,1736098250754,-500.0,9.588e-05,2]
[347774161,1736098250763,-500.0,9.588e-05,2]
[347774162,1736098250772,-500.0,9.588e-05,2]
[347774163,1736098250782,-2260.84,9.588e-05,2]
[347774164,1736098250791,-539.39,9.588e-05,2]
[347774165,1736098250801,-500.0,9.588e-05,2]
[347774166,1736098250810,-500.0,9.588e-05,2]
[347774167,1736098250819,-500.0,9.588e-05,2]
[347774168,1736098250829,-1577.66,9.588e-05,2]
[347774169,1736098250839,-514.15,9.588e-05,2]
[347774170,1736098250847,-310.95034393,9.588e-05,2]
[347774171,1736098250856,-500.0,9.588e-05,2]
[347774172,1736098250867,-500.0,9.588e-05,2]
[347774173,1736098250877,-500.0,9.588e-05,2]
[347774174,1736098250886,-500.0,9.588e-05,2]
[347774175,1736098250896,-500.0,9.588e-05,2]
[347774176,1736098250906,-833.84,9.588e-05,2]
[347774177,1736098250917,-500.0,9.588e-05,2]
[347774178,1736098250926,-500.0,9.588e-05,2]
[347774179,1736098250936,-535.83,9.588e-05,2]
[347774180,1736098250947,-2188.39,9.588e-05,2]
[347774181,1736098250957,-500.0,9.588e-05,2]
[347774182,1736098250967,-500.0,9.588e-05,2]
[347774183,1736098250979,-500.0,9.588e-05,2]
[347774184,1736098250990,-175.38493472,9.588e-05,2]
[347774185,1736098251000,-536.2,9.588e-05,2]
[347774186,1736098251011,-500.0,9.588e-05,2]
[347774187,1736098251020,-532.48716335,9.588e-05,2]
[347774188,1736098251031,-500.0,9.588e-05,2]
[347774189,1736098251041,-500.0,9.588e-05,2]
[347774190,1736098251051,-500.0,9.588e-05,2]
[347774191,1736098251061,-568.82,9.588e-05,2]
[347774192,1736098251070,-617.64,9.588e-05,2]
[347774193,1736098251080,-500.0,9.588e-05,2]
[347774194,1736098251090,-1151.44,9.588e-05,2]
[347774195,1736098251102,-840.38,9.588e-05,2]
[347774196,1736098251113,-1700.05,9.588e-05,2]
[347774197,1736098251125,-150.0,9.667e-05,2]
[347774198,1736098251136,-1319.1,9.684e-05,2]
[347774199,1736098251145,-1440.49,9.684e-05,2]
[347774200,1736098251154,-530.53,9.684e-05,2]
[347774201,1736098251164,-500.0,9.684e-05,2]
[347774202,1736098251173,-1222.34,9.684e-05,2]
[347774203,1736098251183,-500.0,9.684e-05,2]
[347774204,1736098251192,-859.36,9.684e-05,2]
[347774205,1736098251203,-500.0,9.684e-05,2]
[347774206,1736098251215,-983.7,9.684e-05,2]
[347774207,1736098251227,-500.0,9.684e-05,2]
[347774208,1736098251236,-643.62,9.684e-05,2]
[347774209,1736098251247,-1987.06,9.684e-05,2]
[347774210,1736098251256,-500.0,9.685e-05,2]
[347774211,1736098251266,-500.0,9.685e-05,2]
[347774212,1736098251275,-500.0,9.685e-05,2]
[347774213,1736098251284,-500.0,9.685e-05,2]
[347774214,1736098251294,-449.89315258,9.685e-05,2]
[347774215,1736098251303,-500.0,9.685e-05,2]
[347774216,1736098251312,-500.0,9.685e-05,2]
[347774217,1736098251322,-416.49541877,9.685e-05,2]
[347774218,1736098251331,-500.0,9.685e-05,2]
[347774219,1736098251341,-500.0,9.685e-05,2]
[347774220,1736098251351,-500.0,9.685e-05,2]
[347774221,1736098251360,-500.0,9.685e-05,2]
[347774222,1736098251369,-500.0,9.685e-05,2]
[347774223,1736098251379,-500.0,9.685e-05,2]
[347774224,1736098251388,-500.0,9.685e-05,2]
[347774225,1736098251398,-500.0,9.685e-05,2]
[347774226,1736098251408,-500.0,9.685e-05,2]
[347774227,1736098251418,-500.0,9.685e-05,2]
[347774228,1736098251428,-500.0,9.685e-05,2]
[347774229,1736098251439,-500.0,9.685e-05,2]
[347774230,1736098251449,-500.0,9.685e-05,2]
[347774231,1736098251458,-500.0,9.685e-05,2]
[347774232,1736098251467,-500.0,9.685e-05,2]
[347774233,1736098251477,-500.0,9.685e-05,2]
[347774234,1736098251486,-500.0,9.685e-05,2]
[347774235,1736098251496,-500.0,9.685e-05,2]
[347774236,1736098251506,-500.0,9.685e-05,2]
[347774237,1736098251515,-500.0,9.685e-05,2]
[347774238,1736098251527,-500.0,9.685e-05,2]
[347774239,1736098251536,-500.0,9.685e-05,2]
[347774240,1736098251546,-500.0,9.685e-05,2]
[347774241,1736098251555,-638.42619477,9.685e-05,2]
[347774242,1736098251565,-471.287831,9.685e-05,2]
[347774243,1736098251575,-500.0,9.685e-05,2]
[347774244,1736098251586,-500.0,9.685e-05,2]
[347774245,1736098251596,-500.0,9.685e-05,2]
[347774246,1736098251606,-595.30538612,9.685e-05,2]
[347774247,1736098251616,-500.0,9.685e-05,2]
[347774248,1736098251626,-500.0,9.685e-05,2]
[347774249,1736098251635,-635.188407,9.685e-05,2]
[347774250,1736098251645,-500.0,9.685e-05,2]
[347774251,1736098251654,-500.0,9.685e-05,2]
[347774252,1736098251664,-500.0,9.685e-05,2]
[347774253,1736098251673,-500.0,9.685e-05,2]
[347774254,1736098251683,-500.0,9.685e-05,2]
[347774255,1736098251692,-500.0,9.685e-05,2]
[347774256,1736098251701,-161.38,9.685e-05,2]
[347774257,1736098251711,-500.0,9.685e-05,2]
[347774258,1736098251720,-500.0,9.685e-05,2]
[347774259,1736098251729,-500.0,9.685e-05,2]
[347774260,1736098251738,-500.0,9.685e-05,2]
[347774261,1736098251748,-711.7,9.685e-05,2]
[347774262,1736098251757,-529.54,9.685e-05,2]
[347774263,1736098251767,-500.0,9.685e-05,2]
[347774264,1736098251776,-500.0,9.685e-05,2]
[347774265,1736098251785,-500.0,9.685e-05,2]
[347774266,1736098251795,-500.0,9.685e-05,2]
[347774267,1736098251804,-2279.03,9.685e-05,2]
[347774268,1736098251815,-579.56,9.685e-05,2]
[347774269,1736098251824,-500.0,9.685e-05,2]
[347774270,1736098251833,-500.0,9.685e-05,2]
[347774271,1736098251843,-500.0,9.685e-05,2]
[347774272,1736098251852,-1719.59,9.685e-05,2]
[347774273,1736098251861,-500.0,9.685e-05,2]
[347774274,1736098251876,-500.0,9.685e-05,2]
[347774275,1736098251885,-500.0,9.685e-05,2]
[347774276,1736098251895,-500.0,9.685e-05,2]
[347774277,1736098251904,-999.4,9.685e-05,2]
[347774278,1736098251914,-500.0,9.685e-05,2]
[347774279,1736098251923,-500.0,9.685e-05,2]
[347774280,1736098251933,-500.0,9.685e-05,2]
[347774281,1736098251943,-589.63,9.685e-05,2]
[347774282,1736098251952,-854.68,9.685e-05,2]
[347774283,1736098251961,-554.87,9.685e-05,2]
[347774284,1736098251971,-436.87015106,9.685e-05,2]
[347774285,1736098251980,-565.03,9.685e-05,2]
[347774286,1736098251990,-1103.19,9.685e-05,2]
[347774287,1736098252000,-548.59,9.685e-05,2]
[347774288,1736098252009,-500.0,9.685e-05,2]
[347774289,1736098252019,-500.0,9.685e-05,2]
[347774290,1736098252028,-500.0,9.685e-05,2]
[347774291,1736098252037,-500.0,9.685e-05,2]
[347774292,1736098252046,-500.0,9.685e-05,2]
[347774293,1736098252056,-500.0,9.685e-05,2]
[347774294,1736098252065,-500.0,9.685e-05,2]
[347774295,1736098252075,-551.87,9.685e-05,2]
[347774296,1736098252084,-500.0,9.685e-05,2]
[347774297,1736098252093,-500.0,9.685e-05,2]
[347774298,1736098252103,-500.0,9.685e-05,2]
[347774299,1736098252112,-688.62,9.685e-05,2]
[347774300,1736098252122,-500.0,9.685e-05,2]
[347774301,1736098252132,-500.0,9.685e-05,2]
[347774302,1736098252141,-747.39,9.685e-05,2]
[347774303,1736098252150,-500.0,9.685e-05,2]
[347774304,1736098252160,-575.03,9.685e-05,2]
[347774305,1736098252169,-500.0,9.685e-05,2]
[347774306,1736098252179,-500.0,9.685e-05,2]
[347774307,1736098252188,-500.0,9.685e-05,2]
[347774308,1736098252197,-684.88,9.685e-05,2]
[347774309,1736098252206,-500.0,9.685e-05,2]
[347774310,1736098252216,-158.45,9.685e-05,2]
[347774311,1736098252226,-707.71,9.685e-05,2]
[347774312,1736098252236,-1326.02,9.685e-05,2]
[347774313,1736098252245,-500.0,9.685e-05,2]
[347774314,1736098252255,-706.33,9.685e-05,2]
[347774315,1736098252264,-500.0,9.685e-05,2]
[347774316,1736098252274,-500.0,9.685e-05,2]
[347774317,1736098252284,-480.71892929,9.685e-05,2]
[347774318,1736098252294,-505.14,9.685e-05,2]
[347774319,1736098252303,-425.07229155,9.685e-05,2]
[347774320,1736098252313,-500.0,9.685e-05,2]
[347774321,1736098252322,-1393.88,9.685e-05,2]
[347774322,1736098252332,-500.0,9.685e-05,2]
[347774323,1736098252342,-569.29,9.685e-05,2]
[347774324,1736098252351,-500.0,9.685e-05,2]
[347774325,1736098252361,-500.0,9.685e-05,2]
[347774326,1736098252373,-268.07,9.685e-05,2]
[347774327,1736098252384,-500.0,9.685e-05,2]
[347774328,1736098252394,-500.0,9.685e-05,2]
[347774329,1736098252404,-1622.54,9.685e-05,2]
[347774330,1736098252413,-557.66,9.686e-05,2]
[347774331,1736098252424,-500.0,9.686e-05,2]
[347774332,1736098252433,-508.73060072,9.686e-05,2]
[347774333,1736098252443,-536.0,9.767e-05,2]
[347774334,1736098252452,-549.55,9.858e-05,2]
[347774335,1736098252463,-983.74,9.858e-05,2]
[347774336,1736098252472,-594.88,9.858e-05,2]
[347774337,1736098252482,-695.34,9.858e-05,2]
[347774338,1736098252491,-1006.19,9.858e-05,2]
[347774339,1736098252501,-1107.43,9.858e-05,2]
[347774340,1736098252511,-522.14,9.858e-05,2]
[347774341,1736098252520,-835.7,9.858e-05,2]
[347774342,1736098252529,-500.0,9.858e-05,2]
[347774343,1736098252541,-500.0,9.858e-05,2]
[347774344,1736098252552,-814.04,9.858e-05,2]
[347774345,1736098252563,-721.27,9.858e-05,2]
[347774346,1736098252576,-500.0,9.858e-05,2]
[347774347,1736098252586,-500.0,9.86e-05,2]
[347774348,1736098252596,-1026.58,9.86e-05,2]
[347774349,1736098252606,-812.38,9.86e-05,2]
[347774350,1736098252615,-2528.72,9.86e-05,2]
[347774351,1736098252624,-614.02,9.86e-05,2]
[347774352,1736098252634,-691.12,9.86e-05,2]
[347774353,1736098252644,-1610.49,9.86e-05,2]
[347774354,1736098252655,-563.53,9.86e-05,2]
[347774355,1736098252665,-757.04,9.86e-05,2]
[347774356,1736098252675,-691.96,9.86e-05,2]
[347774357,1736098252686,-1011.38,9.86e-05,2]
[347774358,1736098252695,-500.0,9.86e-05,2]
[347774359,1736098252706,-500.0,9.86e-05,2]
[347774360,1736098252716,-1244.56,9.86e-05,2]
[347774361,1736098252726,-1082.96,9.86e-05,2]
[347774362,1736098252736,-500.0,9.862e-05,2]
[347774363,1736098252746,-714.97,9.862e-05,2]
[347774364,1736098252756,-500.0,9.862e-05,2]
[347774365,1736098252766,-500.0,9.862e-05,2]
[347774366,1736098252776,-500.0,9.862e-05,2]
[347774367,1736098252785,-1475.02,9.862e-05,2]
[347774368,1736098252796,-500.0,9.862e-05,2]
[347774369,1736098252807,-500.0,9.862e-05,2]
[347774370,1736098252975,-500.0,9.862e-05,2]
[347774371,1736098252987,-500.0,9.862e-05,2]
[347774372,1736098252997,-753.68,9.862e-05,2]
[347774373,1736098253006,-500.0,9.862e-05,2]
[347774374,1736098253016,-500.0,9.862e-05,2]
[347774375,1736098253028,-500.0,9.862e-05,2]
[347774376,1736098253038,-2260.84,9.862e-05,2]
[347774377,1736098253049,-500.0,9.862e-05,2]
[347774378,1736098253058,-500.0,9.862e-05,2]
[347774379,1736098253067,-1577.66,9.862e-05,2]
[347774380,1736098253077,-500.0,9.862e-05,2]
[347774381,1736098253088,-497.54,9.862e-05,2]
[347774382,1736098253099,-167.77471735,9.862e-05,2]
[347774383,1736098253110,-500.0,9.862e-05,2]
[347774384,1736098253120,-500.0,9.862e-05,2]
[347774385,1736098253130,-833.84,9.862e-05,2]
[347774386,1736098253140,-555.45100091,9.862e-05,2]
[347774387,1736098253149,-500.0,9.862e-05,2]
[347774388,1736098253159,-535.83,9.862e-05,2]
[347774389,1736098253171,-2188.39,9.862e-05,2]
[347774390,1736098253181,-500.0,9.862e-05,2]
[347774391,1736098253191,-500.0,9.862e-05,2]
[347774392,1736098253201,-500.0,9.862e-05,2]
[347774393,1736098253210,-536.2,9.862e-05,2]
[347774394,1736098253220,-500.0,9.862e-05,2]
[347774395,1736098253230,-500.0,9.862e-05,2]
[347774396,1736098253241,-500.0,9.862e-05,2]
[347774397,1736098253251,-500.0,9.862e-05,2]
[347774398,1736098253261,-568.82,9.862e-05,2]
[347774399,1736098253270,-617.64,9.862e-05,2]
[347774400,1736098253281,-500.0,9.862e-05,2]
[347774401,1736098253292,-1151.44,9.862e-05,2]
[347774402,1736098253304,-840.38,9.862e-05,2]
[347774403,1736098253313,-1700.05,9.862e-05,2]
[347774404,1736098253323,-12016.84775582,9.886e-05,4]
[347774405,1736098253333,-587.0,9.909e-05,2]
[347774406,1736098253343,-1319.1,9.958e-05,2]
[347774407,1736098253353,-1440.49,9.958e-05,2]
[347774408,1736098253362,-530.53,9.958e-05,2]
[347774409,1736098253372,-500.0,9.958e-05,2]
[347774410,1736098253382,-1222.34,9.958e-05,2]
[347774411,1736098253392,-500.0,9.958e-05,2]
[347774412,1736098253402,-859.36,9.958e-05,2]
[347774413,1736098253412,-500.0,9.958e-05,2]
[347774414,1736098253422,-983.7,9.958e-05,2]
[347774415,1736098253432,-500.0,9.958e-05,2]
[347774416,1736098253442,-643.62,9.958e-05,2]
[347774417,1736098253452,-1987.06,9.958e-05,2]
[347774418,1736098253462,-401.38149691,9.959e-05,2]
[347774419,1736098253471,-500.0,9.959e-05,2]
[347774420,1736098253480,-500.0,9.959e-05,2]
[347774421,1736098253490,-500.0,9.959e-05,2]
[347774422,1736098253499,-500.0,9.959e-05,2]
[347774423,1736098253509,-500.0,9.959e-05,2]
[347774424,1736098253519,-500.0,9.959e-05,2]
[347774425,1736098253529,-500.0,9.959e-05,2]
[347774426,1736098253538,-500.0,9.959e-05,2]
[347774427,1736098253548,-500.0,9.959e-05,2]
[347774428,1736098253558,-500.0,9.959e-05,2]
[347774429,1736098253568,-500.0,9.959e-05,2]
[347774430,1736098253578,-500.0,9.959e-05,2]
[347774431,1736098253589,-500.0,9.959e-05,2]
[347774432,1736098253599,-500.0,9.959e-05,2]
[347774433,1736098253610,-500.0,9.959e-05,2]
[347774434,1736098253620,-500.0,9.959e-05,2]
[347774435,1736098253630,-500.0,9.959e-05,2]
[347774436,1736098253639,-500.0,9.959e-05,2]
[347774437,1736098253649,-500.0,9.959e-05,2]
[347774438,1736098253659,-500.0,9.959e-05,2]
[347774439,1736098253670,-500.0,9.959e-05,2]
[347774440,1736098253679,-486.3,9.959e-05,2]
[347774441,1736098253689,-500.0,9.959e-05,2]
[347774442,1736098253699,-500.0,9.959e-05,2]
[347774443,1736098253708,-471.287831,9.959e-05,2]
[347774444,1736098253718,-500.0,9.959e-05,2]
[347774445,1736098253728,-500.0,9.959e-05,2]
[347774446,1736098253738,-500.0,9.959e-05,2]
[347774447,1736098253748,-500.0,9.959e-05,2]
[347774448,1736098253758,-500.0,9.959e-05,2]
[347774449,1736098253767,-635.188407,9.959e-05,2]
[347774450,1736098253777,-500.0,9.959e-05,2]
[347774451,1736098253787,-500.0,9.959e-05,2]
[347774452,1736098253797,-266.5262798,9.959e-05,2]
[347774453,1736098253806,-500.0,9.959e-05,2]
[347774454,1736098253816,-500.0,9.959e-05,2]
[347774455,1736098253825,-500.0,9.959e-05,2]
[347774456,1736098253835,-153.227702,9.959e-05,2]
[347774457,1736098253846,-500.0,9.959e-05,2]
[347774458,1736098253855,-500.0,9.959e-05,2]
[347774459,1736098253865,-500.0,9.959e-05,2]
[347774460,1736098253877,-500.0,9.959e-05,2]
[347774461,1736098253886,-711.7,9.959e-05,2]
[347774462,1736098253896,-529.54,9.959e-05,2]
[347774463,1736098253906,-500.0,9.959e-05,2]
[347774464,1736098253915,-500.0,9.959e-05,2]
[347774465,1736098253926,-500.0,9.959e-05,2]
[347774466,1736098253935,-500.0,9.959e-05,2]
[347774467,1736098253945,-2279.03,9.959e-05,2]
[347774468,1736098253956,-579.56,9.959e-05,2]
[347774469,1736098253966,-500.0,9.959e-05,2]
[347774470,1736098253975,-500.0,9.959e-05,2]
[347774471,1736098253985,-500.0,9.959e-05,2]
[347774472,1736098253995,-1719.59,9.959e-05,2]
[347774473,1736098254003,-500.0,9.959e-05,2]
[347774474,1736098254012,-500.0,9.959e-05,2]
[347774475,1736098254022,-500.0,9.959e-05,2]
[347774476,1736098254031,-500.0,9.959e-05,2]
[347774477,1736098254041,-999.4,9.959e-05,2]
[347774478,1736098254051,-500.0,9.959e-05,2]
[347774479,1736098254063,-259.2251531,9.959e-05,2]
[347774480,1736098254073,-451.22259638,9.959e-05,2]
[347774481,1736098254085,-589.63,9.959e-05,2]
[347774482,1736098254095,-854.68,9.959e-05,2]
[347774483,1736098254105,-554.87,9.959e-05,2]
[347774484,1736098254115,-565.03,9.959e-05,2]